fUST/lending_fUST_20241215
["ID","MTS","AMOUNT","RATE_DAILY","PERIOD"]
[345391664,1734227439929,-502.9840656,0.00027397,7]
[345391665,1734227439940,-505.3051715,0.00027397,7]
[345391666,1734227439950,-518.92925291,0.00027397,7]
[345391667,1734227439959,-502.77870074,0.00027397,7]
[345391668,1734227439969,-503.49827863,0.00027397,7]
[345391669,1734227439979,-500.0,0.00027397,7]
[345391670,1734227439990,-501.94296505,0.00027397,7]
[345391671,1734227440001,-500.0,0.00027397,7]
[345391672,1734227440010,-500.0,0.00027397,7]
[345391674,1734227440021,-513.73585756,0.00027397,7]
[345391676,1734227440030,-500.0,0.00027397,7]
[345391677,1734227440040,-500.0,0.00027397,7]
[345391678,1734227440049,-504.18764607,0.00027397,7]
[345391679,1734227440059,-503.37764231,0.00027397,7]
[345391680,1734227440069,-506.62890895,0.00027397,7]
[345391681,1734227440079,-504.7041082,0.00027397,7]
[345391682,1734227440089,-516.65061611,0.00027397,7]
[345391683,1734227440100,-503.40068018,0.00027397,7]
[345391684,1734227440109,-508.22825084,0.00027397,7]
[345391685,1734227440120,-505.65488185,0.00027397,7]
[345391686,1734227440131,-508.13391253,0.00027397,7]
[345391687,1734227440141,-504.57422628,0.00027397,7]
[345391688,1734227440151,-191.62957594,0.00027397,7]
[345391689,1734227440161,-503.65150385,0.00027397,7]
[345391690,1734227440171,-502.84001195,0.00027397,7]
[345391691,1734227440180,-504.40518962,0.00027397,7]
[345391692,1734227440190,-501.27146098,0.00027397,7]
[345391693,1734227440200,-502.84445079,0.00027397,7]
[345391694,1734227440209,-506.56701257,0.00027397,7]
[345391695,1734227440219,-500.0,0.00027397,7]
[345391697,1734227440229,-503.14702604,0.00027397,7]
[345391699,1734227440239,-501.52662251,0.00027397,7]
[345391701,1734227440249,-509.4023795,0.00027397,7]
[345391703,1734227440259,-500.0,0.00027397,7]
[345391705,1734227440269,-504.31763555,0.00027397,7]
[345391707,1734227440279,-515.50317314,0.00027397,7]
[345391708,1734227440289,-502.81179546,0.00027397,7]
[345391709,1734227440299,-508.6103237,0.00027397,7]
[345391710,1734227440308,-507.35840597,0.00027397,7]
[345391711,1734227440318,-504.03940387,0.00027397,7]
[345391712,1734227440328,-516.18555158,0.00027397,7]
[345391713,1734227440337,-506.48973737,0.00027397,7]
[345391714,1734227440348,-503.54712265,0.00027397,7]
[345391715,1734227440358,-504.35131859,0.00027397,7]
[345391716,1734227440368,-505.25672614,0.00027397,7]
[345391717,1734227440383,-516.032676,0.00027397,7]
[345391718,1734227440393,-549.43144096,0.00027397,7]
[345391720,1734227440402,-503.05652284,0.00027397,7]
[345391722,1734227440412,-504.37213649,0.00027397,7]
[345391724,1734227440422,-506.2427838,0.00027397,7]
[345391725,1734227440432,-507.67506924,0.00027397,7]
[345391726,1734227440557,-502.49002931,0.00027397,7]
[345391727,1734227440567,-500.0,0.00027397,7]
[345391728,1734227440576,-599.74139522,0.00027397,7]
[345391729,1734227440586,-506.90300465,0.00027397,7]
[345391730,1734227440597,-500.0,0.00027397,7]
[345391731,1734227440607,-500.0,0.00027397,7]
[345391732,1734227440617,-504.3910485,0.00027397,7]
[345391733,1734227440633,-503.09789851,0.00027397,7]
[345391734,1734227440643,-500.0,0.00027397,7]
[345391735,1734227440652,-540.46720123,0.00027397,7]
[345391736,1734227440661,-516.82871808,0.00027397,7]
[345391737,1734227440671,-506.84475698,0.00027397,7]
[345391738,1734227440680,-1355.8,0.00027397,7]
[345391739,1734227440690,-517.16793955,0.00027397,7]
[345391740,1734227440700,-500.0,0.00027397,7]
[345391741,1734227440712,-500.0,0.00027397,7]
[345391742,1734227440722,-928.65,0.00027397,7]
[345391743,1734227440731,-1331.37,0.00027397,7]
[345391744,1734227440741,-500.0,0.00027397,7]
[345391745,1734227440752,-502.80374805,0.00027397,7]
[345391746,1734227440761,-503.79965961,0.00027397,7]
[345391747,1734227440770,-500.0,0.00027397,7]
[345391748,1734227440780,-503.16121952,0.00027397,7]
[345391749,1734227440791,-500.0,0.00027397,7]
[345391750,1734227440800,-717.85,0.00027397,7]
[345391751,1734227440810,-505.25555965,0.00027397,7]
[345391752,1734227440819,-500.0,0.00027397,7]
[345391753,1734227440829,-507.04131003,0.00027397,7]
[345391754,1734227440839,-525.17726217,0.00027397,7]
[345391755,1734227440849,-505.35498262,0.00027397,7]
[345391756,1734227440858,-503.73286473,0.00027397,7]
[345391757,1734227440868,-500.0,0.00027397,7]
[345391758,1734227440882,-503.38782012,0.00027397,7]
[345391759,1734227440892,-504.3300818,0.00027397,7]
[345391760,1734227440901,-509.5,0.00027397,7]
[345391761,1734227440910,-500.0,0.00027397,7]
[345391762,1734227440920,-500.0,0.00027397,7]
[345391763,1734227440929,-502.29911044,0.00027397,7]
[345391764,1734227440938,-948.23,0.00027397,7]
[345391765,1734227440947,-504.68102779,0.00027397,7]
[345391766,1734227440956,-500.0,0.00027397,7]
[345391767,1734227440966,-500.0,0.00027397,7]
[345391768,1734227440975,-504.4567342,0.00027397,7]
[345391769,1734227440984,-500.0,0.00027397,7]
[345391770,1734227440993,-500.0,0.00027397,7]
[345391771,1734227441003,-283.63131913,0.00027397,7]
[345391772,1734227441012,-503.27311249,0.00027397,7]
[345391773,1734227441021,-502.47935596,0.00027397,7]
[345391774,1734227441030,-500.0,0.00027397,7]
[345391775,1734227441040,-505.27041349,0.00027397,7]
[345391776,1734227441049,-500.0,0.00027397,7]
[345391777,1734227441058,-501.73135802,0.00027397,7]
[345391778,1734227441067,-501.75970131,0.00027397,7]
[345391779,1734227441076,-500.0,0.00027397,7]
[345391780,1734227441085,-506.38848352,0.00027397,7]
[345391781,1734227441095,-506.36070106,0.00027397,7]
[345391782,1734227441104,-503.80999011,0.00027397,7]
[345391783,1734227441114,-507.827697,0.00027397,7]
[345391784,1734227441125,-278.37183919,0.00027397,7]
[345391785,1734227441134,-500.0,0.00027397,7]
[345391786,1734227441144,-506.12031935,0.00027397,7]
[345391787,1734227441153,-500.0,0.00027397,7]
[345391788,1734227441162,-507.46647783,0.00027397,7]
[345391789,1734227441172,-502.13275833,0.00027397,7]
[345391790,1734227441183,-503.98690033,0.00027397,7]
[345391791,1734227441193,-522.11206551,0.00027397,7]
[345391792,1734227441203,-506.12623671,0.00027397,7]
[345391793,1734227441212,-508.6014023,0.00027397,7]
[345391794,1734227441222,-500.0,0.00027397,7]
[345391795,1734227441232,-502.53068448,0.00027397,7]
[345391796,1734227441243,-511.00179026,0.00027397,7]
[345391797,1734227441252,-506.08797561,0.00027397,7]
[345391798,1734227441262,-500.0,0.00027397,7]
[345391799,1734227441273,-504.07457354,0.00027397,7]
[345391800,1734227441283,-641.51157497,0.00027397,7]
[345391801,1734227441293,-500.0,0.00027397,7]
[345391802,1734227441304,-1909.82,0.00027397,7]
[345391803,1734227441313,-500.0,0.00027397,7]
[345391804,1734227441325,-169.93899674,0.00027397,2]
[345391805,1734227441335,-629.22,0.00027671,7]
[345391806,1734227441345,-529.89601206,0.00027671,7]
[345391807,1734227441356,-463.65088598,0.00027671,7]
[345391808,1734227441365,-500.0,0.00027671,7]
[345391809,1734227441378,-500.0,0.00027671,7]
[345391810,1734227441388,-506.19869112,0.00027671,7]
[345391811,1734227441398,-506.27870457,0.00027671,7]
[345391812,1734227441407,-500.0,0.00027671,7]
[345391813,1734227441417,-500.0,0.00027671,7]
[345391814,1734227441427,-500.0,0.00027671,7]
[345391815,1734227441437,-503.81303686,0.00027671,7]
[345391816,1734227441446,-500.0,0.00027671,7]
[345391817,1734227441455,-500.0,0.00027671,7]
[345391818,1734227441465,-500.0,0.00027671,7]
[345391819,1734227441475,-500.0,0.00027671,7]
[345391820,1734227441485,-500.0,0.00027671,7]
[345391821,1734227441495,-500.0,0.00027671,7]
[345391822,1734227441505,-500.0,0.00027671,7]
[345391823,1734227441515,-500.0,0.00027671,7]
[345391824,1734227441526,-500.0,0.00027671,7]
[345391825,1734227441536,-500.0,0.00027671,7]
[345391826,1734227441547,-500.0,0.00027671,7]
[345391827,1734227441556,-500.0,0.00027671,7]
[345391828,1734227441566,-500.0,0.00027671,7]
[345391829,1734227441576,-500.0,0.00027671,7]
[345391830,1734227441585,-504.99282886,0.00027671,7]
[345391831,1734227441594,-500.0,0.00027671,7]
[345391832,1734227441604,-500.0,0.00027671,7]
[345391833,1734227441614,-514.95396094,0.00027671,7]
[345391834,1734227441626,-500.0,0.00027671,7]
[345391835,1734227441636,-500.0,0.00027671,7]
[345391836,1734227441646,-500.0,0.00027671,7]
[345391837,1734227441656,-500.0,0.00027671,7]
[345391838,1734227441666,-500.0,0.00027671,7]
[345391839,1734227441677,-500.0,0.00027671,7]
[345391840,1734227441687,-500.0,0.00027671,7]
[345391841,1734227441697,-500.0,0.00027671,7]
[345391842,1734227441710,-508.35467617,0.00027671,7]
[345391843,1734227441719,-500.0,0.00027671,7]
[345391844,1734227441729,-500.0,0.00027671,7]
[345391845,1734227441738,-500.0,0.00027671,7]
[345391846,1734227441748,-500.0,0.00027671,7]
[345391847,1734227441757,-418.69582843,0.00027671,7]
[345391848,1734227441767,-500.0,0.00027671,7]
[345391849,1734227441777,-500.0,0.00027671,7]
[345391850,1734227441787,-500.0,0.00027671,7]
[345391851,1734227441797,-500.0,0.00027671,7]
[345391852,1734227441807,-500.0,0.00027671,7]
[345391853,1734227441816,-500.0,0.00027671,7]
[345391854,1734227441826,-638.81854226,0.00027671,7]
[345391855,1734227441836,-500.0,0.00027671,7]
[345391856,1734227441845,-500.0,0.00027671,7]
[345391857,1734227441855,-500.0,0.00027671,7]
[345391858,1734227441864,-500.0,0.00027671,7]
[345391859,1734227441877,-609.65309116,0.00027671,7]
[345391860,1734227441887,-500.0,0.00027671,7]
[345391861,1734227441896,-552.58929732,0.00027671,7]
[345391862,1734227441906,-500.0,0.00027671,7]
[345391863,1734227441916,-500.0,0.00027671,7]
[345391864,1734227441926,-464.71061844,0.00027671,7]
[345391865,1734227441935,-172.34340212,0.00027671,7]
[345391866,1734227441945,-153.96760743,0.00027671,7]
[345391867,1734227441954,-500.0,0.00027671,7]
[345391868,1734227441964,-500.0,0.00027671,7]
[345391869,1734227441974,-500.0,0.00027671,7]
[345391870,1734227441985,-500.0,0.00027671,7]
[345391871,1734227441996,-500.0,0.00027671,7]
[345391872,1734227442006,-331.68413449,0.00027671,7]
[345391873,1734227442015,-500.0,0.00027671,7]
[345391874,1734227442026,-500.0,0.00027671,7]
[345391875,1734227442035,-1355.8,0.00027671,7]
[345391876,1734227442045,-505.63537453,0.00027671,7]
[345391877,1734227442055,-500.0,0.00027671,7]
[345391878,1734227442064,-928.65,0.00027671,7]
[345391879,1734227442074,-1331.37,0.00027671,7]
[345391880,1734227442083,-603.78870971,0.00027671,7]
[345391881,1734227442093,-500.0,0.00027671,7]
[345391882,1734227442102,-509.79957759,0.00027671,7]
[345391883,1734227442113,-717.85,0.00027671,7]
[345391884,1734227442124,-500.0,0.00027671,7]
[345391885,1734227442134,-500.0,0.00027671,7]
[345391886,1734227442143,-500.0,0.00027671,7]
[345391887,1734227442153,-522.95388618,0.00027671,7]
[345391888,1734227442163,-948.23,0.00027671,7]
[345391889,1734227442172,-500.0,0.00027671,7]
[345391890,1734227442183,-529.51682103,0.00027671,7]
[345391891,1734227442193,-500.0,0.00027671,7]
[345391892,1734227442202,-505.82962649,0.00027671,7]
[345391893,1734227442212,-500.0,0.00027671,7]
[345391894,1734227442222,-500.0,0.00027671,7]
[345391895,1734227442231,-457.62354678,0.00027671,7]
[345391896,1734227442240,-500.0,0.00027671,7]
[345391897,1734227442250,-500.0,0.00027671,7]
[345391898,1734227442260,-500.0,0.00027671,7]
[345391899,1734227442270,-508.71084206,0.00027671,7]
[345391900,1734227442279,-500.0,0.00027671,7]
[345391901,1734227442289,-1909.82,0.00027671,7]
[345391902,1734227442298,-500.0,0.00027671,7]
[345391903,1734227442307,-515.5673123,0.00027673,5]
[345391904,1734227442317,-629.22,0.00027945,7]
[345391905,1734227442327,-500.0,0.00027945,7]
[345391906,1734227442337,-506.22695174,0.00027945,7]
[345391907,1734227442347,-500.0,0.00027945,7]
[345391908,1734227442357,-500.0,0.00027945,7]
[345391909,1734227442367,-500.0,0.00027945,7]
[345391910,1734227442379,-500.0,0.00027945,7]
[345391911,1734227442389,-506.57882795,0.00027945,7]
[345391912,1734227442398,-500.0,0.00027945,7]
[345391913,1734227442408,-500.0,0.00027945,7]
[345391914,1734227442418,-500.0,0.00027945,7]
[345391915,1734227442428,-500.0,0.00027945,7]
[345391916,1734227442438,-500.0,0.00027945,7]
[345391917,1734227442447,-500.0,0.00027945,7]
[345391918,1734227442457,-500.0,0.00027945,7]
[345391919,1734227442466,-500.0,0.00027945,7]
[345391920,1734227442476,-500.0,0.00027945,7]
[345391921,1734227442485,-500.0,0.00027945,7]
[345391922,1734227442495,-500.0,0.00027945,7]
[345391923,1734227442506,-500.0,0.00027945,7]
[345391924,1734227442515,-500.0,0.00027945,7]
[345391925,1734227442525,-248.62988914,0.00027945,7]
[345391926,1734227442535,-500.0,0.00027945,7]
[345391927,1734227442545,-508.91104049,0.00027945,7]
[345391928,1734227442556,-500.0,0.00027945,7]
[345391929,1734227442566,-581.07238491,0.00027945,7]
[345391930,1734227442575,-500.0,0.00027945,7]
[345391931,1734227442585,-500.0,0.00027945,7]
[345391932,1734227442595,-500.0,0.00027945,7]
[345391933,1734227442604,-500.0,0.00027945,7]
[345391934,1734227442615,-500.0,0.00027945,7]
[345391935,1734227442626,-512.04729042,0.00027945,7]
[345391936,1734227442636,-521.30464188,0.00027945,7]
[345391937,1734227442646,-500.0,0.00027945,7]
[345391938,1734227442656,-500.0,0.00027945,7]
[345391939,1734227442666,-500.0,0.00027945,7]
[345391940,1734227442676,-500.0,0.00027945,7]
[345391941,1734227442686,-500.0,0.00027945,7]
[345391942,1734227442696,-500.0,0.00027945,7]
[345391943,1734227442710,-500.0,0.00027945,7]
[345391944,1734227442720,-500.0,0.00027945,7]
[345391945,1734227442730,-500.0,0.00027945,7]
[345391946,1734227442739,-500.0,0.00027945,7]
[345391947,1734227442750,-507.20324555,0.00027945,7]
[345391948,1734227442760,-500.0,0.00027945,7]
[345391949,1734227442770,-500.0,0.00027945,7]
[345391950,1734227442781,-500.0,0.00027945,7]
[345391951,1734227442791,-500.0,0.00027945,7]
[345391952,1734227442801,-500.0,0.00027945,7]
[345391953,1734227442811,-479.03198392,0.00027945,7]
[345391954,1734227442821,-500.0,0.00027945,7]
[345391955,1734227442831,-518.44160791,0.00027945,7]
[345391956,1734227442840,-426.38895383,0.00027945,7]
[345391957,1734227442850,-500.0,0.00027945,7]
[345391958,1734227442859,-1355.8,0.00027945,7]
[345391959,1734227442872,-500.0,0.00027945,7]
[345391960,1734227442883,-928.65,0.00027945,7]
[345391961,1734227442892,-1331.37,0.00027945,7]
[345391962,1734227442902,-627.51254146,0.00027945,7]
[345391963,1734227442912,-717.85,0.00027945,7]
[345391964,1734227442921,-500.0,0.00027945,7]
[345391965,1734227442931,-500.0,0.00027945,7]
[345391966,1734227442940,-500.0,0.00027945,7]
[345391967,1734227442949,-948.23,0.00027945,7]
[345391968,1734227442959,-553.52100534,0.00027945,7]
[345391969,1734227442968,-418.59433055,0.00027945,7]
[345391970,1734227442978,-500.0,0.00027945,7]
[345391971,1734227442987,-500.0,0.00027945,7]
[345391972,1734227442996,-500.0,0.00027945,7]
[345391973,1734227443006,-500.0,0.00027945,7]
[345391975,1734227443016,-364.87107096,0.00027945,7]
[345391978,1734227443025,-500.0,0.00027945,7]
[345391981,1734227443036,-1909.82,0.00027945,7]
[345391985,1734227443046,-500.0,0.00027945,7]
[345391988,1734227443056,-191.72036843,0.00028,15]
[345391991,1734227443065,-158.3,0.000281,31]
[345391994,1734227443075,-5585.75074729,0.00028119,3]
[345391997,1734227443085,-629.22,0.00028219,7]
[345391999,1734227443095,-500.0,0.00028219,7]
[345392001,1734227443105,-523.7133627,0.00028219,7]
[345392002,1734227443115,-500.0,0.00028219,7]
[345392003,1734227443128,-500.0,0.00028219,7]
[345392004,1734227443144,-500.0,0.00028219,7]
[345392005,1734227443154,-500.0,0.00028219,7]
[345392006,1734227443163,-500.0,0.00028219,7]
[345392007,1734227443173,-500.0,0.00028219,7]
[345392008,1734227443184,-500.0,0.00028219,7]
[345392011,1734227443194,-500.0,0.00028219,7]
[345392012,1734227443204,-500.0,0.00028219,7]
[345392014,1734227443213,-500.0,0.00028219,7]
[345392016,1734227443223,-500.0,0.00028219,7]
[345392018,1734227443232,-500.0,0.00028219,7]
[345392021,1734227443242,-281.42891857,0.00028219,7]
[345392022,1734227443251,-507.04341084,0.00028219,7]
[345392024,1734227443260,-500.0,0.00028219,7]
[345392026,1734227443270,-500.0,0.00028219,7]
[345392028,1734227443280,-500.0,0.00028219,7]
[345392030,1734227443289,-505.83587887,0.00028219,7]
[345392033,1734227443300,-500.0,0.00028219,7]
[345392035,1734227443309,-425.66945446,0.00028219,7]
[345392037,1734227443318,-500.0,0.00028219,7]
[345392039,1734227443327,-500.0,0.00028219,7]
[345392041,1734227443337,-500.0,0.00028219,7]
[345392043,1734227443346,-500.0,0.00028219,7]
[345392044,1734227443356,-500.0,0.00028219,7]
[345392046,1734227443366,-500.0,0.00028219,7]
[345392049,1734227443375,-500.0,0.00028219,7]
[345392050,1734227443385,-500.0,0.00028219,7]
[345392052,1734227443394,-500.0,0.00028219,7]
[345392054,1734227443404,-500.0,0.00028219,7]
[345392056,1734227443414,-500.0,0.00028219,7]
[345392059,1734227443423,-500.0,0.00028219,7]
[345392061,1734227443433,-500.0,0.00028219,7]
[345392063,1734227443442,-500.0,0.00028219,7]
[345392065,1734227443451,-500.0,0.00028219,7]
[345392067,1734227443461,-500.0,0.00028219,7]
[345392069,1734227443471,-500.0,0.00028219,7]
[345392071,1734227443480,-353.28728411,0.00028219,7]
[345392073,1734227443489,-500.0,0.00028219,7]
[345392074,1734227443499,-646.82496443,0.00028219,7]
[345392076,1734227443508,-1355.8,0.00028219,7]
[345392078,1734227443518,-500.0,0.00028219,7]
[345392080,1734227443527,-928.65,0.00028219,7]
[345392082,1734227443536,-1331.37,0.00028219,7]
[345392084,1734227443546,-717.85,0.00028219,7]
[345392086,1734227443555,-500.0,0.00028219,7]
[345392088,1734227443565,-341.9399211,0.00028219,7]
[345392089,1734227443700,-500.0,0.00028219,7]
[345392090,1734227443713,-948.23,0.00028219,7]
[345392091,1734227443722,-500.0,0.00028219,7]
[345392092,1734227443732,-500.0,0.00028219,7]
[345392093,1734227443742,-500.0,0.00028219,7]
[345392094,1734227443752,-500.0,0.00028219,7]
[345392095,1734227443761,-500.0,0.00028219,7]
[345392096,1734227443771,-1909.82,0.00028219,7]
[345392097,1734227443781,-500.0,0.00028219,7]
[345392098,1734227443790,-4133.78415246,0.00028332,2]
[345392099,1734227443799,-151.0,0.000284,15]
[345392100,1734227443809,-6307.99699297,0.00028492,7]
[345392101,1734227443818,-629.22,0.00028493,7]
[345392102,1734227443827,-500.0,0.00028493,7]
[345392103,1734227443837,-504.75439202,0.00028493,7]
[345392104,1734227443846,-500.0,0.00028493,7]
[345392105,1734227443856,-500.0,0.00028493,7]
[345392106,1734227443866,-500.0,0.00028493,7]
[345392107,1734227443877,-500.0,0.00028493,7]
[345392108,1734227443887,-500.0,0.00028493,7]
[345392109,1734227443900,-591.8698189,0.00028493,7]
[345392110,1734227443910,-500.0,0.00028493,7]
[345392111,1734227443919,-500.0,0.00028493,7]
[345392112,1734227443928,-500.0,0.00028493,7]
[345392113,1734227443937,-500.0,0.00028493,7]
[345392114,1734227443947,-500.0,0.00028493,7]
[345392115,1734227443956,-500.0,0.00028493,7]
[345392116,1734227443966,-500.0,0.00028493,7]
[345392117,1734227443976,-500.0,0.00028493,7]
[345392118,1734227443985,-500.0,0.00028493,7]
[345392119,1734227443994,-157.26509114,0.00028493,7]
[345392120,1734227444004,-433.50113189,0.00028493,7]
[345392121,1734227444013,-500.0,0.00028493,7]
[345392122,1734227444023,-222.72367416,0.00028493,7]
[345392123,1734227444033,-500.0,0.00028493,7]
[345392124,1734227444042,-500.0,0.00028493,7]
[345392125,1734227444052,-500.0,0.00028493,7]
[345392126,1734227444062,-500.0,0.00028493,7]
[345392127,1734227444071,-500.0,0.00028493,7]
[345392128,1734227444081,-500.0,0.00028493,7]
[345392129,1734227444092,-500.0,0.00028493,7]
[345392130,1734227444102,-500.0,0.00028493,7]
[345392131,1734227444111,-500.0,0.00028493,7]
[345392132,1734227444120,-500.0,0.00028493,7]
[345392133,1734227444129,-500.0,0.00028493,7]
[345392134,1734227444139,-500.0,0.00028493,7]
[345392135,1734227444149,-500.0,0.00028493,7]
[345392136,1734227444159,-500.0,0.00028493,7]
[345392137,1734227444169,-1355.8,0.00028493,7]
[345392138,1734227444178,-500.0,0.00028493,7]
[345392139,1734227444188,-928.65,0.00028493,7]
[345392140,1734227444198,-1331.37,0.00028493,7]
[345392141,1734227444208,-717.85,0.00028493,7]
[345392142,1734227444218,-295.65846032,0.00028493,7]
[345392143,1734227444227,-500.0,0.00028493,7]
[345392144,1734227444237,-948.23,0.00028493,7]
[345392145,1734227444246,-500.0,0.00028493,7]
[345392146,1734227444255,-500.0,0.00028493,7]
[345392147,1734227444264,-500.0,0.00028493,7]
[345392148,1734227444274,-500.0,0.00028493,7]
[345392149,1734227444283,-500.0,0.00028493,7]
[345392150,1734227444292,-1909.82,0.00028493,7]
[345392151,1734227444302,-186.16054013,0.00028493,7]
[345392152,1734227444311,-152.095375,0.00028499,2]
[345392153,1734227444321,-28452.6033869,0.000285,2]
[345392154,1734227444330,-1075.39070283,0.000285,2]
[345392155,1734227444340,-1000.0,0.000285,6]
[345392156,1734227444349,-1000.0,0.000285,15]
[345392157,1734227444358,-1119959.81878278,0.000285,2]
[345392158,1734227444430,-24147.50813707,0.000285,2]
[345392159,1734227444449,-2246.90386298,0.000285,2]
[345392160,1734227444578,-268.56,0.00027397,7]
[345392180,1734227446505,-231.44,0.00027397,7]
[345392182,1734227446515,-502.14874097,0.00027397,7]
[345392184,1734227446525,-155.76,0.000281,31]
[345392186,1734227446534,-1540.44134728,0.000285,2]
[345392191,1734227446696,-9224.31391497,0.000285,2]
[345392192,1734227446712,-107030.15974362,0.000285,2]
[345392200,1734227612439,166.240818,0.00013973,2]
[345392202,1734228028564,2370.5,0.000255,120]
[345392203,1734228195394,555.0,0.000255,120]
[345392204,1734228211046,529.82,0.000255,120]
[345392206,1734228514261,166.240818,0.00013973,2]
[345392225,1734228636993,-180.051639,0.00026226,2]
[345392226,1734228637004,-184.360092,0.00027,2]
[345392227,1734228637014,-166.0,0.00027,2]
[345392228,1734228637024,-412.178,0.0002707,2]
[345392229,1734228637036,-150.172,0.00027162,2]
[345392230,1734228637046,-2000.0,0.000272,7]
[345392231,1734228637056,-2000.0,0.000272,8]
[345392232,1734228637065,-902.87333549,0.00027297,2]
[345392295,1734228638997,-766.76553258,0.00027297,2]
[345392298,1734228639007,-300.0,0.00027396,2]
[345392299,1734228639017,-503.46581057,0.00027397,7]
[345392301,1734228639027,-500.0,0.00027397,7]
[345392304,1734228639039,-500.0,0.00027397,7]
[345392306,1734228639049,-469.64333503,0.00027397,7]
[345392308,1734228639061,-30.35666497,0.00027397,7]
[345392310,1734228639071,-500.0,0.00027397,7]
[345392312,1734228639081,-503.65971475,0.00027397,7]
[345392314,1734228639091,-500.0,0.00027397,7]
[345392316,1734228639100,-503.15029681,0.00027397,7]
[345392318,1734228639110,-500.0,0.00027397,7]
[345392319,1734228639120,-503.59012684,0.00027397,7]
[345392321,1734228639131,-500.0,0.00027397,7]
[345392323,1734228639142,-503.74549003,0.00027397,7]
[345392325,1734228639151,-500.0,0.00027397,7]
[345392326,1734228639161,-505.38079689,0.00027397,7]
[345392329,1734228639171,-502.85587292,0.00027397,7]
[345392332,1734228639181,-617.85341707,0.00027397,7]
[345392335,1734228639190,-505.28983213,0.00027397,7]
[345392338,1734228639199,-519.0035036,0.00027397,7]
[345392341,1734228639209,-500.0,0.00027397,7]
[345392344,1734228639219,-500.0,0.00027397,7]
[345392346,1734228639229,-500.0,0.00027397,7]
[345392348,1734228639239,-500.0,0.00027397,7]
[345392350,1734228639248,-500.0,0.00027397,7]
[345392352,1734228639258,-1004.93115017,0.00027397,7]
[345392354,1734228639268,-500.0,0.00027397,7]
[345392356,1734228639278,-500.0,0.00027397,7]
[345392357,1734228639289,-500.0,0.00027397,7]
[345392358,1734228639309,-502.33078875,0.00027397,7]
[345392359,1734228639320,-500.0,0.00027397,7]
[345392360,1734228639330,-500.0,0.00027397,7]
[345392361,1734228639340,-500.0,0.00027397,7]
[345392362,1734228639352,-500.0,0.00027397,7]
[345392363,1734228639364,-514.3051923,0.00027397,7]
[345392364,1734228639374,-500.0,0.00027397,7]
[345392365,1734228639383,-500.0,0.00027397,7]
[345392366,1734228639395,-500.0,0.00027397,7]
[345392367,1734228639405,-500.0,0.00027397,7]
[345392368,1734228639415,-500.0,0.00027397,7]
[345392369,1734228639424,-503.5304028,0.00027397,7]
[345392370,1734228639435,-591.8698189,0.00027397,7]
[345392371,1734228639446,-500.0,0.00027397,7]
[345392372,1734228639456,-501.61360639,0.00027397,7]
[345392373,1734228639466,-500.0,0.00027397,7]
[345392374,1734228639476,-505.32492417,0.00027397,7]
[345392375,1734228639486,-500.0,0.00027397,7]
[345392376,1734228639495,-500.0,0.00027397,7]
[345392377,1734228639505,-500.0,0.00027397,7]
[345392378,1734228639514,-500.0,0.00027397,7]
[345392379,1734228639525,-500.0,0.00027397,7]
[345392380,1734228639535,-506.94256993,0.00027397,7]